fUSD/lending_fUSD_20240301
["ID","MTS","AMOUNT","RATE_DAILY","PERIOD"]
[316030702,1709328677787,-500.0,0.00022575,2]
[316030703,1709328677797,-3786.07,0.00022575,2]
[316030704,1709328677808,-500.0,0.00022575,2]
[316030705,1709328677818,-1383.65,0.00022575,2]
[316030706,1709328677828,-500.0,0.00022575,2]
[316030707,1709328677838,-9217.98,0.00022575,2]
[316030708,1709328677849,-561.4,0.00022575,2]
[316030709,1709328677859,-539.54700684,0.00022575,2]
[316030710,1709328677870,-11675.57,0.00022575,2]
[316030711,1709328677880,-1723.27,0.00022575,2]
[316030712,1709328677891,-500.0,0.00022575,2]
[316030713,1709328677902,-8684.27,0.00022575,2]
[316030714,1709328677913,-702.09,0.00022575,2]
[316030715,1709328677923,-500.0,0.00022575,2]
[316030716,1709328677933,-3567.05,0.00022575,2]
[316030717,1709328677943,-3405.56,0.00022575,2]
[316030718,1709328677954,-2872.71,0.00022575,2]
[316030719,1709328677964,-4829.55,0.00022575,2]
[316030720,1709328677974,-7070.51,0.00022575,2]
[316030721,1709328677985,-500.0,0.00022575,2]
[316030722,1709328677995,-26810.74,0.00022575,2]
[316030723,1709328678005,-2983.15,0.00022575,2]
[316030724,1709328678014,-500.0,0.00022575,2]
[316030725,1709328678024,-719.44,0.00022575,2]
[316030726,1709328678036,-6899.63,0.00022575,2]
[316030727,1709328678046,-1105.01,0.00022575,2]
[316030728,1709328678056,-2000.0,0.000226,2]
[316030729,1709328678066,-35449.93,0.000226,3]
[316030730,1709328678077,-41308.93,0.000226,3]
[316030731,1709328678087,-64581.76,0.000226,3]
[316030732,1709328678096,-180.0,0.00022603,2]
[316030733,1709328678106,-381.0,0.00022605,2]
[316030734,1709328678117,-152.0,0.00022605,2]
[316030735,1709328678127,-273.5,0.00022609,2]
[316030736,1709328678138,-475.39,0.00022619,2]
[316030737,1709328678149,-4357.48530198,0.00022629,2]
[316030738,1709328678160,-1345.70607997,0.00022654,2]
[316030739,1709328678169,-500.0,0.00022684,2]
[316030740,1709328678179,-500.0,0.00022684,2]
[316030741,1709328678189,-500.0,0.00022684,2]
[316030742,1709328678199,-500.0,0.00022684,2]
[316030743,1709328678209,-500.0,0.00022684,2]
[316030744,1709328678219,-500.0,0.00022684,2]
[316030745,1709328678229,-500.0,0.00022684,2]
[316030746,1709328678239,-500.0,0.00022684,2]
[316030747,1709328678248,-500.0,0.00022684,2]
[316030748,1709328678258,-500.0,0.00022684,2]
[316030749,1709328678268,-500.0,0.00022684,2]
[316030750,1709328678278,-500.0,0.00022684,2]
[316030751,1709328678288,-500.0,0.00022684,2]
[316030752,1709328678297,-254.25,0.00022684,2]
[316030753,1709328678307,-500.0,0.00022684,2]
[316030754,1709328678318,-500.0,0.00022684,2]
[316030755,1709328678328,-500.0,0.00022684,2]
[316030756,1709328678338,-500.0,0.00022684,2]
[316030757,1709328678348,-500.0,0.00022684,2]
[316030758,1709328678358,-500.0,0.00022684,2]
[316030759,1709328678368,-500.0,0.00022684,2]
[316030760,1709328678377,-500.0,0.00022684,2]
[316030761,1709328678387,-500.0,0.00022684,2]
[316030762,1709328678399,-500.0,0.00022684,2]
[316030763,1709328678409,-500.0,0.00022684,2]
[316030764,1709328678419,-500.0,0.00022684,2]
[316030765,1709328678429,-500.0,0.00022684,2]
[316030766,1709328678440,-500.0,0.00022684,2]
[316030767,1709328678450,-500.0,0.00022684,2]
[316030768,1709328678460,-500.0,0.00022684,2]
[316030769,1709328678470,-500.0,0.00022684,2]
[316030770,1709328678479,-500.0,0.00022684,2]
[316030771,1709328678489,-500.0,0.00022684,2]
[316030772,1709328678499,-806.31,0.00022684,2]
[316030773,1709328678508,-868.44,0.00022684,2]
[316030774,1709328678518,-500.0,0.00022684,2]
[316030775,1709328678527,-500.0,0.00022684,2]
[316030776,1709328678569,-520.71,0.00022684,2]
[316030777,1709328678579,-500.0,0.00022684,2]
[316030778,1709328678589,-500.0,0.00022684,2]
[316030779,1709328678599,-500.0,0.00022684,2]
[316030780,1709328678609,-526.71,0.00022684,2]
[316030781,1709328678619,-500.0,0.00022684,2]
[316030782,1709328678629,-500.0,0.00022684,2]
[316030783,1709328678638,-647.62,0.00022684,2]
[316030784,1709328678649,-500.0,0.00022684,2]
[316030785,1709328678659,-500.0,0.00022684,2]
[316030786,1709328678669,-500.0,0.00022684,2]
[316030787,1709328678679,-678.21,0.00022684,2]
[316030788,1709328678689,-500.0,0.00022684,2]
[316030789,1709328678699,-544.09,0.00022684,2]
[316030790,1709328678709,-508.46,0.00022684,2]
[316030791,1709328678719,-500.0,0.00022684,2]
[316030792,1709328678729,-500.0,0.00022684,2]
[316030793,1709328678739,-191.25545,0.00022684,2]
[316030794,1709328678750,-365.23,0.00022684,2]
[316030795,1709328678760,-440.87990379,0.00022684,2]
[316030796,1709328678771,-500.0,0.00022684,2]
[316030797,1709328678781,-500.0,0.00022684,2]
[316030798,1709328678791,-500.0,0.00022684,2]
[316030799,1709328678801,-500.0,0.00022684,2]
[316030800,1709328678811,-500.0,0.00022684,2]
[316030801,1709328678821,-546.96,0.00022684,2]
[316030802,1709328678830,-182.62733653,0.00022684,2]
[316030803,1709328678840,-555.83,0.00022684,2]
[316030804,1709328678851,-523.64,0.00022684,2]
[316030805,1709328678861,-631.39,0.00022684,2]
[316030806,1709328678870,-500.0,0.00022684,2]
[316030807,1709328678880,-377.98835063,0.00022684,2]
[316030808,1709328678890,-500.0,0.00022684,2]
[316030809,1709328678901,-500.0,0.00022684,2]
[316030810,1709328678910,-500.0,0.00022684,2]
[316030811,1709328678920,-500.0,0.00022684,2]
[316030812,1709328678930,-500.0,0.00022684,2]
[316030813,1709328678941,-511.43,0.00022684,2]
[316030814,1709328678951,-500.0,0.00022684,2]
[316030815,1709328678961,-160.79,0.00022684,2]
[316030816,1709328678971,-500.0,0.00022684,2]
[316030817,1709328678981,-500.0,0.00022684,2]
[316030818,1709328678991,-500.0,0.00022684,2]
[316030819,1709328679001,-500.0,0.00022684,2]
[316030820,1709328679012,-500.0,0.00022684,2]
[316030821,1709328679022,-500.0,0.00022684,2]
[316030822,1709328679031,-500.0,0.00022684,2]
[316030823,1709328679041,-1020.84,0.00022684,2]
[316030824,1709328679051,-786.29,0.00022684,2]
[316030825,1709328679063,-500.0,0.00022684,2]
[316030826,1709328679073,-500.0,0.00022684,2]
[316030827,1709328679082,-189.20349108,0.00022684,2]
[316030828,1709328679092,-719.0,0.00022684,2]
[316030829,1709328679102,-500.0,0.00022684,2]
[316030830,1709328679112,-649.43,0.00022684,2]
[316030831,1709328679122,-500.0,0.00022684,2]
[316030832,1709328679132,-790.2,0.00022684,2]
[316030833,1709328679142,-997.5,0.00022684,2]
[316030834,1709328679153,-1068.72,0.00022684,2]
[316030835,1709328679162,-1094.89,0.00022684,2]
[316030836,1709328679172,-500.0,0.00022684,2]
[316030837,1709328679182,-500.0,0.00022684,2]
[316030838,1709328679191,-500.0,0.00022684,2]
[316030839,1709328679201,-500.0,0.00022684,2]
[316030840,1709328679210,-1192.31,0.00022684,2]
[316030841,1709328679219,-594.98,0.00022684,2]
[316030842,1709328679229,-500.0,0.00022684,2]
[316030843,1709328679239,-587.36,0.00022684,2]
[316030844,1709328679249,-1550.72,0.00022684,2]
[316030845,1709328679258,-500.0,0.00022684,2]
[316030846,1709328679268,-500.0,0.00022684,2]
[316030847,1709328679277,-519.8,0.00022684,2]
[316030848,1709328679287,-500.0,0.00022684,2]
[316030849,1709328679297,-500.0,0.00022684,2]
[316030850,1709328679307,-961.47,0.00022684,2]
[316030851,1709328679317,-500.0,0.00022684,2]
[316030852,1709328679327,-500.0,0.00022684,2]
[316030853,1709328679337,-500.0,0.00022684,2]
[316030854,1709328679347,-565.65,0.00022684,2]
[316030855,1709328679357,-840.17,0.00022684,2]
[316030856,1709328679366,-711.45,0.00022684,2]
[316030857,1709328679376,-500.0,0.00022684,2]
[316030858,1709328679385,-500.0,0.00022684,2]
[316030859,1709328679395,-980.11,0.00022684,2]
[316030860,1709328679405,-500.0,0.00022684,2]
[316030861,1709328679414,-879.26,0.00022684,2]
[316030862,1709328679424,-500.0,0.00022684,2]
[316030863,1709328679433,-797.44,0.00022684,2]
[316030864,1709328679443,-500.0,0.00022684,2]
[316030865,1709328679453,-500.0,0.00022684,2]
[316030866,1709328679462,-500.0,0.00022684,2]
[316030867,1709328679472,-598.47,0.00022684,2]
[316030868,1709328679481,-500.0,0.00022684,2]
[316030869,1709328679491,-500.0,0.00022684,2]
[316030870,1709328679501,-500.0,0.00022684,2]
[316030871,1709328679510,-670.82,0.00022684,2]
[316030872,1709328679519,-500.0,0.00022684,2]
[316030873,1709328679538,-588.71,0.00022684,2]
[316030874,1709328679549,-500.0,0.00022684,2]
[316030875,1709328679559,-1272.27,0.00022684,2]
[316030876,1709328679569,-500.0,0.00022684,2]
[316030877,1709328679578,-500.0,0.00022684,2]
[316030878,1709328679588,-678.39,0.00022684,2]
[316030879,1709328679598,-500.0,0.00022684,2]
[316030880,1709328679607,-500.0,0.00022684,2]
[316030881,1709328679617,-849.53,0.00022684,2]
[316030882,1709328679627,-878.99,0.00022684,2]
[316030883,1709328679638,-2036.27,0.00022684,2]
[316030884,1709328679648,-500.0,0.00022684,2]
[316030885,1709328679658,-444.37134898,0.00022684,2]
[316030886,1709328679668,-1094.91,0.00022684,2]
[316030887,1709328679677,-500.0,0.00022684,2]
[316030888,1709328679687,-500.0,0.00022684,2]
[316030889,1709328679697,-500.0,0.00022684,2]
[316030890,1709328679706,-500.0,0.00022684,2]
[316030891,1709328679716,-279.24,0.00022684,2]
[316030892,1709328679726,-533.71,0.00022684,2]
[316030893,1709328679736,-533.33,0.00022684,2]
[316030894,1709328679746,-1421.07,0.00022684,2]
[316030895,1709328679756,-912.34,0.00022684,2]
[316030896,1709328679766,-841.55,0.00022684,2]
[316030897,1709328679776,-500.0,0.00022684,2]
[316030898,1709328679786,-500.0,0.00022684,2]
[316030899,1709328679908,-500.0,0.00022684,2]
[316030900,1709328679918,-1139.29,0.00022684,2]
[316030901,1709328679928,-500.0,0.00022684,2]
[316030902,1709328679938,-1580.22,0.00022684,2]
[316030903,1709328679947,-500.0,0.00022684,2]
[316030904,1709328679957,-500.0,0.00022684,2]
[316030905,1709328679967,-500.0,0.00022684,2]
[316030906,1709328679977,-500.0,0.00022684,2]
[316030907,1709328679986,-500.0,0.00022684,2]
[316030908,1709328679996,-2674.55,0.00022684,2]
[316030909,1709328680005,-1262.24,0.00022684,2]
[316030910,1709328680015,-1341.14,0.00022684,2]
[316030911,1709328680025,-2092.42,0.00022684,2]
[316030912,1709328680035,-3554.37,0.00022684,2]
[316030913,1709328680045,-500.0,0.00022684,2]
[316030914,1709328680056,-22031.57,0.00022684,2]
[316030915,1709328680066,-701.99,0.00022684,2]
[316030916,1709328680075,-1064.52,0.00022684,2]
[316030917,1709328680085,-639.85,0.00022684,2]
[316030918,1709328680095,-5388.16,0.00022684,2]
[316030919,1709328680104,-12964.37,0.00022684,2]
[316030920,1709328680114,-627.03,0.00022684,2]
[316030921,1709328680123,-1232.9,0.00022684,2]
[316030922,1709328680135,-500.0,0.00022684,2]
[316030923,1709328680144,-19234.87,0.00022684,2]
[316030924,1709328680154,-500.0,0.00022684,2]
[316030925,1709328680163,-625.28,0.00022684,2]
[316030926,1709328680173,-879.42,0.00022684,2]
[316030927,1709328680182,-1030.09,0.00022684,2]
[316030928,1709328680192,-500.0,0.00022684,2]
[316030929,1709328680201,-172.22083242,0.00022684,2]
[316030930,1709328680211,-591.46,0.00022684,2]
[316030931,1709328680221,-500.0,0.00022684,2]
[316030932,1709328680231,-525.33,0.00022684,2]
[316030933,1709328680241,-2623.39,0.00022684,2]
[316030934,1709328680250,-500.0,0.00022684,2]
[316030935,1709328680260,-718.91,0.00022684,2]
[316030936,1709328680271,-768.4,0.00022684,2]
[316030937,1709328680280,-500.0,0.00022684,2]
[316030938,1709328680290,-3801.92,0.00022684,2]
[316030939,1709328680299,-562.14,0.00022684,2]
[316030940,1709328680309,-500.0,0.00022684,2]
[316030941,1709328680319,-3047.53,0.00022684,2]
[316030942,1709328680328,-500.0,0.00022684,2]
[316030943,1709328680338,-1310.43,0.00022684,2]
[316030944,1709328680347,-500.0,0.00022684,2]
[316030945,1709328680357,-823.12,0.00022684,2]
[316030946,1709328680367,-500.0,0.00022684,2]
[316030947,1709328680377,-500.0,0.00022684,2]
[316030948,1709328680387,-716.56,0.00022684,2]
[316030949,1709328680398,-203.8657636,0.00022684,2]
[316030950,1709328680407,-500.0,0.00022684,2]
[316030951,1709328680416,-2376.01,0.00022684,2]
[316030952,1709328680425,-3381.92,0.00022684,2]
[316030953,1709328680435,-500.0,0.00022684,2]
[316030954,1709328680444,-866.15,0.00022684,2]
[316030955,1709328680453,-841.14,0.00022684,2]
[316030956,1709328680462,-500.0,0.00022684,2]
[316030957,1709328680471,-1258.66,0.00022684,2]
[316030958,1709328680481,-577.75,0.00022684,2]
[316030959,1709328680492,-500.0,0.00022684,2]
[316030960,1709328680501,-943.35,0.00022684,2]
[316030961,1709328680510,-652.2,0.00022684,2]
[316030962,1709328680520,-1224.0,0.00022684,2]
[316030963,1709328680529,-864.99,0.00022684,2]
[316030964,1709328680538,-820.32,0.00022684,2]
[316030965,1709328680547,-612.09,0.00022684,2]
[316030966,1709328680556,-500.0,0.00022684,2]
[316030967,1709328680566,-2359.92,0.00022684,2]
[316030968,1709328680575,-500.0,0.00022684,2]
[316030969,1709328680584,-500.0,0.00022684,2]
[316030970,1709328680593,-716.08,0.00022684,2]
[316030971,1709328680602,-1817.57,0.00022684,2]
[316030972,1709328680612,-1515.63,0.00022684,2]
[316030973,1709328680622,-819.32,0.00022684,2]
[316030974,1709328680632,-777.15,0.00022684,2]
[316030975,1709328680641,-500.0,0.00022684,2]
[316030976,1709328680651,-591.97,0.00022684,2]
[316030977,1709328680661,-500.0,0.00022684,2]
[316030978,1709328680671,-1444.25,0.00022684,2]
[316030979,1709328680680,-890.54,0.00022684,2]
[316030980,1709328680689,-500.0,0.00022684,2]
[316030981,1709328680699,-500.0,0.00022684,2]
[316030982,1709328680708,-500.0,0.00022684,2]
[316030983,1709328680717,-653.12,0.00022684,2]
[316030984,1709328680727,-500.0,0.00022684,2]
[316030985,1709328680737,-544.86,0.00022684,2]
[316030986,1709328680747,-500.0,0.00022684,2]
[316030987,1709328680758,-668.01,0.00022684,2]
[316030988,1709328680768,-564.0,0.00022684,2]
[316030989,1709328680778,-11798.33,0.00022684,2]
[316030990,1709328680787,-517.53,0.00022684,2]
[316030991,1709328680797,-500.0,0.00022684,2]
[316030992,1709328680807,-500.0,0.00022684,2]
[316030993,1709328680818,-500.0,0.00022684,2]
[316030994,1709328680828,-615.8,0.00022684,2]
[316030995,1709328680839,-1178.7,0.00022684,2]
[316030996,1709328680849,-500.0,0.00022684,2]
[316030997,1709328680860,-708.24,0.00022684,2]
[316030998,1709328680870,-500.0,0.00022684,2]
[316030999,1709328680880,-3036.11,0.00022684,2]
[316031000,1709328680891,-500.0,0.00022684,2]
[316031001,1709328680903,-819.23,0.00022684,2]
[316031002,1709328680913,-500.0,0.00022684,2]
[316031003,1709328680923,-568.79,0.00022684,2]
[316031004,1709328680933,-1291.29,0.00022684,2]
[316031005,1709328680942,-507.75,0.00022684,2]
[316031006,1709328680952,-661.02,0.00022684,2]
[316031007,1709328680962,-500.0,0.00022684,2]
[316031008,1709328680972,-592.43,0.00022684,2]
[316031009,1709328680982,-1204.1,0.00022684,2]
[316031010,1709328680992,-500.0,0.00022684,2]
[316031011,1709328681002,-500.0,0.00022684,2]
[316031012,1709328681011,-1481.86,0.00022684,2]
[316031013,1709328681021,-500.0,0.00022684,2]
[316031014,1709328681030,-500.0,0.00022684,2]
[316031015,1709328681043,-500.0,0.00022684,2]
[316031016,1709328681053,-783.92,0.00022684,2]
[316031017,1709328681062,-2213.26,0.00022684,2]
[316031018,1709328681072,-500.0,0.00022684,2]
[316031019,1709328681083,-782.94,0.00022684,2]
[316031020,1709328681092,-500.0,0.00022684,2]
[316031021,1709328681102,-1312.48,0.00022684,2]
[316031022,1709328681111,-629.61336203,0.00022684,2]
[316031023,1709328681121,-836.34,0.00022684,2]
[316031024,1709328681132,-1408.63,0.00022684,2]
[316031025,1709328681141,-552.95,0.00022684,2]
[316031026,1709328681152,-877.39,0.00022684,2]
[316031027,1709328681162,-726.46,0.00022684,2]
[316031028,1709328681171,-500.0,0.00022684,2]
[316031029,1709328681181,-1437.05,0.00022684,2]
[316031030,1709328681191,-500.0,0.00022684,2]
[316031031,1709328681200,-2294.72,0.00022684,2]
[316031032,1709328681210,-906.87,0.00022684,2]
[316031033,1709328681219,-685.72,0.00022684,2]
[316031034,1709328681229,-786.95,0.00022684,2]
[316031035,1709328681238,-500.0,0.00022684,2]
[316031036,1709328681248,-500.0,0.00022684,2]
[316031037,1709328681257,-500.0,0.00022684,2]
[316031038,1709328681267,-571.0,0.00022684,2]
[316031039,1709328681277,-1703.63,0.00022684,2]
[316031040,1709328681286,-2645.44,0.00022684,2]
[316031041,1709328681296,-923.63,0.00022684,2]
[316031042,1709328681305,-572.96,0.00022684,2]
[316031043,1709328681315,-160.72,0.00022684,2]
[316031044,1709328681324,-874.1,0.00022684,2]
[316031045,1709328681333,-500.0,0.00022684,2]
[316031046,1709328681344,-2609.99,0.00022684,2]
[316031047,1709328681354,-500.0,0.00022684,2]
[316031048,1709328681364,-500.0,0.00022684,2]
[316031049,1709328681373,-4819.61,0.00022684,2]
[316031050,1709328681383,-1024.04,0.00022684,2]
[316031051,1709328681393,-500.0,0.00022684,2]
[316031052,1709328681404,-567.41,0.00022684,2]
[316031053,1709328681413,-1364.46,0.00022684,2]
[316031054,1709328681423,-264.61984105,0.00022684,2]
[316031055,1709328681433,-1947.64,0.00022684,2]
[316031056,1709328681443,-961.79,0.00022684,2]
[316031057,1709328681453,-1664.45,0.00022684,2]
[316031058,1709328681463,-500.0,0.00022684,2]
[316031059,1709328681472,-500.0,0.00022684,2]
[316031060,1709328681481,-2683.61,0.00022684,2]
[316031061,1709328681491,-591.44,0.00022684,2]
[316031062,1709328681500,-5623.01,0.00022684,2]
[316031063,1709328681509,-500.0,0.00022684,2]
[316031064,1709328681519,-3786.07,0.00022684,2]
[316031065,1709328681529,-500.0,0.00022684,2]
[316031066,1709328681538,-1383.65,0.00022684,2]
[316031067,1709328681547,-500.0,0.00022684,2]
[316031068,1709328681557,-9217.98,0.00022684,2]
[316031069,1709328681567,-561.4,0.00022684,2]
[316031070,1709328681577,-11675.57,0.00022684,2]
[316031071,1709328681587,-418.03393142,0.00022684,2]
[316031072,1709328681597,-1723.27,0.00022684,2]
[316031073,1709328681606,-8684.27,0.00022684,2]
[316031074,1709328681616,-702.09,0.00022684,2]
[316031075,1709328681625,-500.0,0.00022684,2]
[316031076,1709328681634,-3567.05,0.00022684,2]
[316031077,1709328681644,-3405.56,0.00022684,2]
[316031078,1709328681654,-2872.71,0.00022684,2]
[316031079,1709328681663,-4829.55,0.00022684,2]
[316031080,1709328681673,-7070.51,0.00022684,2]
[316031081,1709328681682,-500.0,0.00022684,2]
[316031082,1709328681692,-26810.74,0.00022684,2]
[316031083,1709328681701,-2983.15,0.00022684,2]
[316031084,1709328681710,-500.0,0.00022684,2]
[316031085,1709328681720,-719.44,0.00022684,2]
[316031086,1709328681729,-6899.63,0.00022684,2]
[316031087,1709328681738,-1105.01,0.00022684,2]
[316031088,1709328681747,-406.0,0.00022685,2]
[316031089,1709328681756,-957.0,0.00022685,2]
[316031090,1709328681766,-2237.089,0.00022685,2]
[316031091,1709328681776,-510.523,0.00022685,2]
[316031092,1709328681785,-690.72185425,0.00022699,2]
[316031093,1709328681795,-178.0,0.00022708,2]
[316031094,1709328681805,-690.72185414,0.00022713,2]
[316031095,1709328681815,-150.0,0.00022726,2]
[316031096,1709328681829,-690.72185414,0.00022728,2]
[316031097,1709328681839,-475.39,0.0002273,2]
[316031098,1709328681849,-168.63,0.0002274,2]
[316031099,1709328681858,-168.63,0.0002274,2]
[316031100,1709328681868,-690.72185414,0.00022742,2]
[316031101,1709328681877,-150.0,0.00022743,2]
[316031102,1709328681887,-690.72185414,0.00022756,2]
[316031103,1709328681897,-4357.48530198,0.00022763,2]
[316031104,1709328681908,-191.88375577,0.00022769,2]
[316031105,1709328681917,-119772.67548894,0.0002277,2]
[316031106,1709328681926,-150.0,0.0002277,2]
[316031107,1709328681936,-690.72185414,0.00022771,2]
[316031108,1709328681946,-690.72185414,0.00022785,2]
[316031109,1709328681955,-384.50877493,0.00022793,2]
[316031110,1709328681964,-150.0,0.00022793,2]
[316031111,1709328681974,-500.0,0.00022794,2]
[316031112,1709328681984,-500.0,0.00022794,2]
[316031113,1709328681993,-251.63379721,0.00022794,2]
[316031114,1709328682003,-417.65248083,0.00022794,2]
[316031115,1709328682013,-500.0,0.00022794,2]
[316031116,1709328682022,-226.88,0.00022794,2]
[316031117,1709328682031,-500.0,0.00022794,2]
[316031118,1709328682040,-500.0,0.00022794,2]
[316031119,1709328682050,-500.0,0.00022794,2]
[316031120,1709328682063,-500.0,0.00022794,2]
[316031121,1709328682072,-500.0,0.00022794,2]
[316031122,1709328682081,-500.0,0.00022794,2]
[316031123,1709328682090,-500.0,0.00022794,2]
[316031124,1709328682101,-500.0,0.00022794,2]
[316031125,1709328682111,-500.0,0.00022794,2]
[316031126,1709328682120,-502.82651193,0.00022794,2]
[316031127,1709328682130,-500.0,0.00022794,2]
[316031128,1709328682140,-500.0,0.00022794,2]
[316031129,1709328682151,-500.0,0.00022794,2]
[316031130,1709328682160,-500.0,0.00022794,2]
[316031131,1709328682170,-500.0,0.00022794,2]
[316031132,1709328682179,-500.0,0.00022794,2]
[316031133,1709328682188,-500.0,0.00022794,2]
[316031134,1709328682198,-500.0,0.00022794,2]
[316031135,1709328682208,-500.0,0.00022794,2]
[316031136,1709328682219,-500.0,0.00022794,2]
[316031137,1709328682228,-500.0,0.00022794,2]
[316031138,1709328682237,-500.0,0.00022794,2]
[316031139,1709328682246,-500.0,0.00022794,2]
[316031140,1709328682255,-500.0,0.00022794,2]
[316031141,1709328682265,-806.31,0.00022794,2]
[316031142,1709328682275,-868.44,0.00022794,2]
[316031143,1709328682284,-407.44432698,0.00022794,2]
[316031144,1709328682293,-500.0,0.00022794,2]
[316031145,1709328682302,-520.71,0.00022794,2]
[316031146,1709328682311,-500.0,0.00022794,2]
[316031147,1709328682321,-500.0,0.00022794,2]
[316031148,1709328682330,-500.0,0.00022794,2]
[316031149,1709328682340,-526.71,0.00022794,2]
[316031150,1709328682349,-500.0,0.00022794,2]
[316031151,1709328682358,-500.0,0.00022794,2]
[316031152,1709328682368,-647.62,0.00022794,2]
[316031153,1709328682377,-500.0,0.00022794,2]
[316031154,1709328682387,-500.0,0.00022794,2]
[316031155,1709328682396,-500.0,0.00022794,2]
[316031156,1709328682406,-678.21,0.00022794,2]
[316031157,1709328682416,-500.0,0.00022794,2]
[316031158,1709328682425,-544.09,0.00022794,2]
[316031159,1709328682435,-508.46,0.00022794,2]
[316031160,1709328682444,-500.0,0.00022794,2]
[316031161,1709328682454,-586.64,0.00022794,2]
[316031162,1709328682463,-500.0,0.00022794,2]
[316031163,1709328682473,-500.0,0.00022794,2]
[316031164,1709328682483,-303.6,0.00022794,2]
[316031165,1709328682492,-500.0,0.00022794,2]
[316031166,1709328682502,-596.11055527,0.00022794,2]
[316031167,1709328682512,-546.96,0.00022794,2]
[316031168,1709328682521,-555.83,0.00022794,2]
[316031169,1709328682531,-523.64,0.00022794,2]
[316031170,1709328682541,-631.39,0.00022794,2]
[316031171,1709328682550,-500.0,0.00022794,2]
[316031172,1709328682559,-500.0,0.00022794,2]
[316031173,1709328682569,-500.0,0.00022794,2]
[316031174,1709328682579,-500.0,0.00022794,2]
[316031175,1709328682589,-500.0,0.00022794,2]
[316031176,1709328682598,-500.0,0.00022794,2]
[316031177,1709328682608,-511.43,0.00022794,2]
[316031178,1709328682618,-305.71,0.00022794,2]
[316031179,1709328682627,-500.0,0.00022794,2]
[316031180,1709328682637,-500.0,0.00022794,2]
[316031181,1709328682647,-500.0,0.00022794,2]
[316031182,1709328682658,-426.67828742,0.00022794,2]
[316031183,1709328682667,-500.0,0.00022794,2]
[316031184,1709328682678,-500.0,0.00022794,2]
[316031185,1709328682687,-317.13,0.00022794,2]
[316031186,1709328682697,-1020.84,0.00022794,2]
[316031187,1709328682707,-786.29,0.00022794,2]
[316031188,1709328682718,-500.0,0.00022794,2]
[316031189,1709328682728,-500.0,0.00022794,2]
[316031190,1709328682738,-719.0,0.00022794,2]
[316031191,1709328682748,-500.0,0.00022794,2]
[316031192,1709328682758,-649.43,0.00022794,2]
[316031193,1709328682768,-500.0,0.00022794,2]
[316031194,1709328682779,-790.2,0.00022794,2]
[316031195,1709328682789,-997.5,0.00022794,2]
[316031196,1709328682799,-1068.72,0.00022794,2]
[316031197,1709328682810,-1094.89,0.00022794,2]
[316031198,1709328682820,-500.0,0.00022794,2]
[316031199,1709328682830,-500.0,0.00022794,2]
[316031200,1709328682840,-514.40942397,0.00022794,2]
[316031201,1709328682850,-500.0,0.00022794,2]